fUST/lending_fUST_20250603
["ID","MTS","AMOUNT","RATE_DAILY","PERIOD"]
[363892560,1748913037755,-440.0,0.00016712,2]
[363892562,1748913037765,-2966.29,0.00016712,2]
[363892564,1748913037776,-440.0,0.00016712,2]
[363892566,1748913037786,-440.0,0.00016712,2]
[363892568,1748913037795,-440.0,0.00016712,2]
[363892570,1748913037805,-807.9,0.00016712,2]
[363892572,1748913037814,-440.0,0.00016712,2]
[363892574,1748913037824,-440.0,0.00016712,2]
[363892576,1748913037833,-360.0,0.00016712,2]
[363892579,1748913037842,-440.0,0.00016712,2]
[363892582,1748913037852,-440.0,0.00016712,2]
[363892585,1748913037862,-440.0,0.00016712,2]
[363892588,1748913037871,-500.0,0.00016961,2]
[363892590,1748913037880,-500.0,0.00016961,2]
[363892591,1748913037889,-500.0,0.00016961,2]
[363892593,1748913037898,-500.0,0.00016961,2]
[363892596,1748913037908,-500.0,0.00016961,2]
[363892597,1748913037918,-410.0,0.00016986,2]
[363892599,1748913037927,-410.0,0.00016986,2]
[363892601,1748913037940,-440.0,0.00016986,2]
[363892603,1748913037949,-413.56700865,0.00016986,2]
[363892605,1748913037959,-410.0,0.00016986,2]
[363892607,1748913037968,-412.91792797,0.00016986,2]
[363892609,1748913037979,-410.0,0.00016986,2]
[363892611,1748913037988,-410.0,0.00016986,2]
[363892613,1748913037997,-410.0,0.00016986,2]
[363892615,1748913038007,-440.0,0.00016986,2]
[363892617,1748913038017,-440.0,0.00016986,2]
[363892619,1748913038027,-440.0,0.00016986,2]
[363892621,1748913038038,-440.0,0.00016986,2]
[363892623,1748913038049,-440.0,0.00016986,2]
[363892625,1748913038061,-410.0,0.00016986,2]
[363892627,1748913038071,-440.0,0.00016986,2]
[363892629,1748913038080,-330.64307993,0.00016986,2]
[363892631,1748913038091,-410.0,0.00016986,2]
[363892633,1748913038100,-440.0,0.00016986,2]
[363892635,1748913038110,-410.0,0.00016986,2]
[363892637,1748913038119,-410.0,0.00016986,2]
[363892639,1748913038129,-378.19,0.00016986,2]
[363892641,1748913038139,-440.0,0.00016986,2]
[363892643,1748913038148,-410.0,0.00016986,2]
[363892644,1748913038157,-410.0,0.00016986,2]
[363892647,1748913038167,-420.69683744,0.00016986,2]
[363892648,1748913038176,-440.0,0.00016986,2]
[363892650,1748913038186,-410.0,0.00016986,2]
[363892652,1748913038196,-440.0,0.00016986,2]
[363892654,1748913038206,-410.0,0.00016986,2]
[363892656,1748913038215,-419.45953224,0.00016986,2]
[363892658,1748913038225,-410.0,0.00016986,2]
[363892660,1748913038234,-478.38289887,0.00016986,2]
[363892662,1748913038243,-410.0,0.00016986,2]
[363892664,1748913038253,-440.0,0.00016986,2]
[363892666,1748913038262,-410.0,0.00016986,2]
[363892668,1748913038272,-410.0,0.00016986,2]
[363892670,1748913038281,-440.0,0.00016986,2]
[363892672,1748913038291,-410.0,0.00016986,2]
[363892674,1748913038301,-440.0,0.00016986,2]
[363892676,1748913038310,-410.0,0.00016986,2]
[363892678,1748913038319,-410.0,0.00016986,2]
[363892680,1748913038328,-190.1771151,0.00016986,2]
[363892682,1748913038338,-458.17,0.00016986,2]
[363892684,1748913038347,-440.0,0.00016986,2]
[363892686,1748913038357,-383.10415432,0.00016986,2]
[363892688,1748913038366,-410.0,0.00016986,2]
[363892690,1748913038376,-345.07,0.00016986,2]
[363892691,1748913038385,-410.0,0.00016986,2]
[363892693,1748913038395,-410.0,0.00016986,2]
[363892695,1748913038404,-440.0,0.00016986,2]
[363892697,1748913038414,-489.95,0.00016986,2]
[363892699,1748913038423,-440.0,0.00016986,2]
[363892701,1748913038433,-410.0,0.00016986,2]
[363892702,1748913038442,-440.0,0.00016986,2]
[363892704,1748913038452,-3209.41,0.00016986,2]
[363892706,1748913038462,-410.0,0.00016986,2]
[363892708,1748913038471,-440.0,0.00016986,2]
[363892710,1748913038481,-410.0,0.00016986,2]
[363892711,1748913038490,-322.79500161,0.00016986,2]
[363892713,1748913038500,-1357.58,0.00016986,2]
[363892715,1748913038509,-1219.57,0.00016986,2]
[363892717,1748913038519,-410.0,0.00016986,2]
[363892719,1748913038530,-651.59,0.00016986,2]
[363892721,1748913038540,-440.0,0.00016986,2]
[363892723,1748913038550,-410.0,0.00016986,2]
[363892724,1748913038559,-440.0,0.00016986,2]
[363892725,1748913038569,-440.0,0.00016986,2]
[363892726,1748913038578,-377.88877373,0.00016986,2]
[363892727,1748913038588,-440.0,0.00016986,2]
[363892728,1748913038597,-520.83,0.00016986,2]
[363892729,1748913038607,-440.0,0.00016986,2]
[363892730,1748913038616,-440.0,0.00016986,2]
[363892731,1748913038625,-440.0,0.00016986,2]
[363892732,1748913038635,-2755.46,0.00016986,2]
[363892733,1748913038645,-1491.58,0.00016986,2]
[363892734,1748913038655,-410.0,0.00016986,2]
[363892735,1748913038664,-541.43,0.00016986,2]
[363892736,1748913038674,-440.0,0.00016986,2]
[363892737,1748913038683,-410.0,0.00016986,2]
[363892738,1748913038693,-440.0,0.00016986,2]
[363892739,1748913038703,-440.0,0.00016986,2]
[363892740,1748913038713,-1970.69,0.00016986,2]
[363892741,1748913038722,-440.0,0.00016986,2]
[363892742,1748913038732,-410.0,0.00016986,2]
[363892743,1748913038741,-440.0,0.00016986,2]
[363892744,1748913038751,-410.71,0.00016986,2]
[363892745,1748913038761,-1617.96,0.00016986,2]
[363892746,1748913038770,-1292.78,0.00016986,2]
[363892747,1748913038779,-2533.63,0.00016986,2]
[363892748,1748913038789,-4186.19,0.00016986,2]
[363892749,1748913038799,-1569.74,0.00016986,2]
[363892750,1748913038808,-440.0,0.00016986,2]
[363892751,1748913038817,-613.64,0.00016986,2]
[363892752,1748913038827,-410.0,0.00016986,2]
[363892753,1748913038836,-410.0,0.00016986,2]
[363892754,1748913038846,-440.0,0.00016986,2]
[363892755,1748913038855,-965.05,0.00016986,2]
[363892756,1748913038865,-440.0,0.00016986,2]
[363892757,1748913038875,-440.0,0.00016986,2]
[363892758,1748913038884,-440.0,0.00016986,2]
[363892759,1748913038894,-440.0,0.00016986,2]
[363892760,1748913038904,-1009.96,0.00016986,2]
[363892761,1748913038914,-440.0,0.00016986,2]
[363892762,1748913038923,-410.0,0.00016986,2]
[363892763,1748913038934,-380.0,0.00016986,2]
[363892764,1748913038947,-440.0,0.00016986,2]
[363892765,1748913038957,-440.0,0.00016986,2]
[363892766,1748913038966,-200.0,0.00016986,2]
[363892767,1748913038976,-440.0,0.00016986,2]
[363892768,1748913038986,-426.53269205,0.00016986,2]
[363892769,1748913038995,-440.0,0.00016986,2]
[363892770,1748913039006,-412.6841582,0.00016986,2]
[363892771,1748913039019,-410.0,0.00016986,2]
[363892772,1748913039029,-440.0,0.00016986,2]
[363892773,1748913039039,-440.0,0.00016986,2]
[363892774,1748913039048,-440.0,0.00016986,2]
[363892775,1748913039057,-440.0,0.00016986,2]
[363892776,1748913039066,-422.25,0.00016986,2]
[363892777,1748913039074,-584.99576228,0.00016986,2]
[363892778,1748913039083,-898.87,0.00016986,2]
[363892779,1748913039092,-440.0,0.00016986,2]
[363892780,1748913039101,-1821.93,0.00016986,2]
[363892781,1748913039110,-400.0,0.00016986,2]
[363892782,1748913039120,-440.0,0.00016986,2]
[363892783,1748913039129,-440.0,0.00016986,2]
[363892784,1748913039138,-440.0,0.00016986,2]
[363892785,1748913039147,-516.51,0.00016986,2]
[363892786,1748913039156,-440.0,0.00016986,2]
[363892787,1748913039166,-1280.67,0.00016986,2]
[363892788,1748913039175,-1497.77,0.00016986,2]
[363892789,1748913039185,-440.0,0.00016986,2]
[363892790,1748913039195,-410.0,0.00016986,2]
[363892791,1748913039203,-440.0,0.00016986,2]
[363892792,1748913039213,-235.46551563,0.00016986,2]
[363892793,1748913039222,-442.77,0.00016986,2]
[363892794,1748913039232,-616.75,0.00016986,2]
[363892795,1748913039241,-440.0,0.00016986,2]
[363892797,1748913039251,-410.0,0.00016986,2]
[363892798,1748913039260,-440.0,0.00016986,2]
[363892799,1748913039270,-440.0,0.00016986,2]
[363892800,1748913039279,-440.0,0.00016986,2]
[363892801,1748913039289,-2966.29,0.00016986,2]
[363892802,1748913039298,-440.0,0.00016986,2]
[363892804,1748913039307,-440.0,0.00016986,2]
[363892805,1748913039317,-440.0,0.00016986,2]
[363892807,1748913039327,-807.9,0.00016986,2]
[363892808,1748913039336,-440.0,0.00016986,2]
[363892809,1748913039345,-440.0,0.00016986,2]
[363892810,1748913039355,-440.0,0.00016986,2]
[363892811,1748913039365,-440.0,0.00016986,2]
[363892812,1748913039374,-440.0,0.00016986,2]
[363892813,1748913039384,-500.0,0.00017016,2]
[363892814,1748913039394,-500.0,0.0001703,2]
[363892815,1748913039404,-418.49676619,0.00017036,2]
[363892816,1748913039414,-1606.4356738,0.000172,2]
[363892817,1748913039423,-1606.43567355,0.000172,2]
[363892818,1748913039433,-506.5417296,0.00017224,2]
[363892819,1748913039442,-441.93286393,0.00017224,2]
[363892820,1748913039451,-500.0,0.00017235,2]
[363892821,1748913039461,-400.0,0.0001726,2]
[363892822,1748913039470,-448.05264455,0.0001726,2]
[363892823,1748913039480,-440.0,0.0001726,2]
[363892824,1748913039490,-400.0,0.0001726,2]
[363892825,1748913039499,-440.0,0.0001726,2]
[363892826,1748913039509,-440.0,0.0001726,2]
[363892827,1748913039519,-440.0,0.0001726,2]
[363892828,1748913039528,-440.0,0.0001726,2]
[363892829,1748913039537,-440.0,0.0001726,2]
[363892830,1748913039546,-440.0,0.0001726,2]
[363892831,1748913039555,-181.6,0.0001726,2]
[363892832,1748913039563,-440.0,0.0001726,2]
[363892833,1748913039572,-400.0,0.0001726,2]
[363892834,1748913039582,-400.0,0.0001726,2]
[363892835,1748913039592,-400.0,0.0001726,2]
[363892836,1748913039601,-440.0,0.0001726,2]
[363892837,1748913039611,-440.0,0.0001726,2]
[363892838,1748913039621,-440.0,0.0001726,2]
[363892839,1748913039630,-3209.41,0.0001726,2]
[363892840,1748913039640,-440.0,0.0001726,2]
[363892841,1748913039650,-1357.58,0.0001726,2]
[363892842,1748913039659,-1219.57,0.0001726,2]
[363892843,1748913039669,-651.59,0.0001726,2]
[363892844,1748913039678,-469.4662129,0.0001726,2]
[363892845,1748913039689,-440.0,0.0001726,2]
[363892846,1748913039698,-400.0,0.0001726,2]
[363892847,1748913039707,-440.0,0.0001726,2]
[363892848,1748913039717,-520.83,0.0001726,2]
[363892849,1748913039726,-440.0,0.0001726,2]
[363892850,1748913039735,-440.0,0.0001726,2]
[363892851,1748913039744,-400.0,0.0001726,2]
[363892852,1748913039754,-2755.46,0.0001726,2]
[363892853,1748913039763,-1491.58,0.0001726,2]
[363892854,1748913039773,-541.43,0.0001726,2]
[363892855,1748913039782,-440.0,0.0001726,2]
[363892857,1748913039793,-529.38,0.0001726,2]
[363892859,1748913039802,-440.0,0.0001726,2]
[363892861,1748913039811,-1970.69,0.0001726,2]
[363892863,1748913039820,-440.0,0.0001726,2]
[363892865,1748913039830,-440.0,0.0001726,2]
[363892866,1748913039839,-1617.96,0.0001726,2]
[363892868,1748913039848,-1292.78,0.0001726,2]
[363892870,1748913039858,-2533.63,0.0001726,2]
[363892872,1748913039867,-4186.19,0.0001726,2]
[363892874,1748913039877,-1569.74,0.0001726,2]
[363892876,1748913039886,-189.84,0.0001726,2]
[363892878,1748913039895,-613.64,0.0001726,2]
[363892880,1748913039904,-193.63569838,0.0001726,2]
[363892882,1748913039915,-965.05,0.0001726,2]
[363892892,1748913040023,-453.90864755,0.0001726,2]
[363892893,1748913040033,-440.0,0.0001726,2]
[363892894,1748913040043,-314.86793959,0.0001726,2]
[363892895,1748913040053,-335.20336282,0.0001726,2]
[363892896,1748913040063,-1009.96,0.0001726,2]
[363892897,1748913040072,-390.0,0.0001726,2]
[363892898,1748913040081,-440.0,0.0001726,2]
[363892899,1748913040090,-440.0,0.0001726,2]
[363892900,1748913040100,-440.0,0.0001726,2]
[363892901,1748913040110,-440.0,0.0001726,2]
[363892902,1748913040119,-204.03,0.0001726,2]
[363892903,1748913040129,-440.0,0.0001726,2]
[363892904,1748913040139,-440.0,0.0001726,2]
[363892905,1748913040149,-440.0,0.0001726,2]
[363892906,1748913040158,-898.87,0.0001726,2]
[363892907,1748913040168,-440.0,0.0001726,2]
[363892908,1748913040177,-1821.93,0.0001726,2]
[363892909,1748913040187,-440.0,0.0001726,2]
[363892910,1748913040196,-440.0,0.0001726,2]
[363892911,1748913040207,-440.0,0.0001726,2]
[363892912,1748913040216,-516.51,0.0001726,2]
[363892913,1748913040227,-440.0,0.0001726,2]
[363892914,1748913040237,-430.57814368,0.0001726,2]
[363892915,1748913040776,-440.0,0.00016438,2]
[363892916,1748913040785,-184.20491612,0.00016438,2]
[363892917,1748913040798,-245.79508388,0.00016438,2]
[363892918,1748913040807,-850.09185632,0.0001726,2]
[363892919,1748913040817,-1497.77,0.0001726,2]
[363892920,1748913040826,-440.0,0.0001726,2]
[363892921,1748913040836,-440.0,0.0001726,2]
[363892922,1748913040846,-442.77,0.0001726,2]
[363892923,1748913040856,-616.75,0.0001726,2]
[363892924,1748913040865,-400.0,0.0001726,2]
[363892925,1748913040875,-410.0,0.0001726,2]
[363892926,1748913040884,-440.0,0.0001726,2]
[363892927,1748913040894,-440.0,0.0001726,2]
[363892928,1748913040903,-2966.29,0.0001726,2]
[363892929,1748913040913,-440.0,0.0001726,2]
[363892930,1748913040922,-410.0,0.0001726,2]
[363892931,1748913040932,-440.0,0.0001726,2]
[363892932,1748913040946,-807.9,0.0001726,2]
[363892933,1748913040957,-440.0,0.0001726,2]
[363892934,1748913040966,-440.0,0.0001726,2]
[363892935,1748913040975,-215.68014135,0.0001726,2]
[363892936,1748913040986,-440.0,0.0001726,2]
[363892937,1748913040995,-440.0,0.0001726,2]
[363892938,1748913041006,-500.0,0.00017266,2]
[363892939,1748913041017,-171.19974362,0.00017369,2]
[363892940,1748913041027,-500.0,0.00017369,2]
[363892941,1748913041036,-500.0,0.00017369,2]
[363892942,1748913041047,-500.0,0.00017369,2]
[363892943,1748913041057,-500.0,0.00017369,2]
[363892944,1748913041067,-1606.43567355,0.00017383,2]
[363892945,1748913041077,-427.57744528,0.00017415,2]
[363892946,1748913041087,-2510.36197737,0.00017434,2]
[363892947,1748913041097,-192.75023431,0.00017509,2]
[363892948,1748913041106,-531.45381942,0.00017534,2]
[363892949,1748913041116,-440.0,0.00017534,2]
[363892950,1748913041126,-440.0,0.00017534,2]
[363892951,1748913041136,-272.02,0.00017534,2]
[363892952,1748913041146,-440.0,0.00017534,2]
[363892953,1748913041157,-440.0,0.00017534,2]
[363892954,1748913041166,-440.0,0.00017534,2]
[363892955,1748913041176,-440.0,0.00017534,2]
[363892956,1748913041186,-440.0,0.00017534,2]
[363892957,1748913041196,-440.0,0.00017534,2]
[363892958,1748913041206,-440.0,0.00017534,2]
[363892959,1748913041215,-168.76,0.00017534,2]
[363892960,1748913041225,-1357.58,0.00017534,2]
[363892961,1748913041236,-1219.57,0.00017534,2]
[363892962,1748913041246,-651.59,0.00017534,2]
[363892963,1748913041255,-390.0,0.00017534,2]
[363892964,1748913041265,-400.0,0.00017534,2]
[363892965,1748913041275,-440.0,0.00017534,2]
[363892966,1748913041285,-2755.46,0.00017534,2]
[363892967,1748913041297,-1491.58,0.00017534,2]
[363892968,1748913041307,-541.43,0.00017534,2]
[363892969,1748913041316,-440.0,0.00017534,2]
[363892970,1748913041327,-440.0,0.00017534,2]
[363892971,1748913041337,-1970.69,0.00017534,2]
[363892972,1748913041346,-440.0,0.00017534,2]
[363892973,1748913041356,-440.0,0.00017534,2]
[363892974,1748913041365,-1617.96,0.00017534,2]
[363892975,1748913041375,-1292.78,0.00017534,2]
[363892976,1748913041385,-2533.63,0.00017534,2]
[363892977,1748913041394,-4186.19,0.00017534,2]
[363892978,1748913041404,-1569.74,0.00017534,2]
[363892979,1748913041414,-613.64,0.00017534,2]
[363892980,1748913041423,-965.05,0.00017534,2]
[363892981,1748913041433,-440.0,0.00017534,2]
[363892982,1748913041442,-1009.96,0.00017534,2]
[363892983,1748913041451,-440.0,0.00017534,2]
[363892984,1748913041461,-440.0,0.00017534,2]
[363892985,1748913041471,-440.0,0.00017534,2]
[363892986,1748913041481,-440.0,0.00017534,2]
[363892987,1748913041490,-380.0,0.00017534,2]
[363892988,1748913041500,-440.0,0.00017534,2]
[363892989,1748913041510,-440.0,0.00017534,2]
[363892990,1748913041519,-898.87,0.00017534,2]
[363892991,1748913041529,-440.0,0.00017534,2]
[363892992,1748913041541,-1821.93,0.00017534,2]
[363892993,1748913041551,-440.0,0.00017534,2]
[363892994,1748913041562,-440.0,0.00017534,2]
[363892995,1748913041571,-440.0,0.00017534,2]
[363892996,1748913041581,-516.51,0.00017534,2]
[363892997,1748913041590,-440.0,0.00017534,2]
[363892998,1748913041600,-1280.67,0.00017534,2]
[363892999,1748913041609,-1497.77,0.00017534,2]
[363893000,1748913041619,-440.0,0.00017534,2]
[363893001,1748913041629,-440.0,0.00017534,2]
[363893002,1748913041638,-442.77,0.00017534,2]
[363893003,1748913041648,-616.75,0.00017534,2]
[363893004,1748913041657,-265.44875054,0.00017534,2]
[363893005,1748913041667,-440.0,0.00017534,2]
[363893006,1748913041676,-2966.29,0.00017534,2]
[363893007,1748913041686,-400.0,0.00017534,2]
[363893008,1748913041695,-440.0,0.00017534,2]
[363893009,1748913041705,-807.9,0.00017534,2]
[363893010,1748913041714,-440.0,0.00017534,2]
[363893011,1748913041724,-440.0,0.00017534,2]
[363893012,1748913041733,-440.0,0.00017534,2]
[363893013,1748913041743,-440.0,0.00017534,2]
[363893014,1748913041752,-255.2,0.00017568,2]
[363893015,1748913041762,-255.2,0.00017568,2]
[363893016,1748913041771,-255.2,0.00017568,2]
[363893017,1748913041781,-255.2,0.00017568,2]
[363893018,1748913041790,-255.2,0.00017568,2]
[363893019,1748913041800,-255.2,0.00017568,2]
[363893020,1748913041809,-255.2,0.00017568,2]
[363893021,1748913041819,-255.2,0.00017568,2]
[363893022,1748913041829,-255.2,0.00017568,2]
[363893023,1748913041838,-1000.0,0.00017578,2]
[363893024,1748913041848,-1606.43567355,0.00017624,2]
[363893025,1748913041857,-500.0,0.00017783,2]
[363893026,1748913041867,-440.0,0.00017808,2]
[363893027,1748913041876,-440.0,0.00017808,2]
[363893028,1748913041889,-298.0,0.00017808,2]
[363893029,1748913041898,-440.0,0.00017808,2]
[363893030,1748913041908,-440.0,0.00017808,2]
[363893031,1748913041917,-440.0,0.00017808,2]
[363893032,1748913041927,-440.0,0.00017808,2]
[363893033,1748913041939,-440.0,0.00017808,2]
[363893034,1748913041950,-372.4,0.00017808,2]
[363893035,1748913041959,-1357.58,0.00017808,2]
[363893036,1748913041969,-1219.57,0.00017808,2]
[363893037,1748913041980,-651.59,0.00017808,2]
[363893038,1748913041990,-440.0,0.00017808,2]
[363893039,1748913042000,-2755.46,0.00017808,2]
[363893040,1748913042010,-1491.58,0.00017808,2]
[363893041,1748913042022,-541.43,0.00017808,2]
[363893042,1748913042032,-406.65616903,0.00017808,2]
[363893043,1748913042042,-440.0,0.00017808,2]
[363893044,1748913042051,-1970.69,0.00017808,2]
[363893045,1748913042061,-440.0,0.00017808,2]
[363893046,1748913042070,-440.0,0.00017808,2]
[363893047,1748913042079,-1617.96,0.00017808,2]
[363893048,1748913042089,-1292.78,0.00017808,2]
[363893049,1748913042098,-2533.63,0.00017808,2]
[363893050,1748913042108,-4186.19,0.00017808,2]
[363893051,1748913042117,-1569.74,0.00017808,2]
[363893052,1748913042127,-613.64,0.00017808,2]
[363893053,1748913042136,-965.05,0.00017808,2]
[363893054,1748913042146,-449.77639132,0.00017808,2]
[363893055,1748913042155,-1009.96,0.00017808,2]
[363893056,1748913042165,-440.0,0.00017808,2]
[363893057,1748913042174,-440.0,0.00017808,2]
[363893058,1748913042183,-440.0,0.00017808,2]
[363893059,1748913042193,-435.96625736,0.00017808,2]
[363893060,1748913042202,-440.0,0.00017808,2]
[363893062,1748913042212,-440.0,0.00017808,2]
[363893063,1748913042222,-898.87,0.00017808,2]
[363893064,1748913042233,-440.0,0.00017808,2]
[363893065,1748913042243,-1821.93,0.00017808,2]
[363893066,1748913042253,-440.0,0.00017808,2]
[363893067,1748913042263,-370.0,0.00017808,2]
[363893068,1748913042272,-440.0,0.00017808,2]
[363893069,1748913042282,-440.0,0.00017808,2]
[363893070,1748913042291,-516.51,0.00017808,2]
[363893071,1748913042301,-1280.67,0.00017808,2]
[363893072,1748913042310,-1497.77,0.00017808,2]
[363893073,1748913042320,-440.0,0.00017808,2]
[363893074,1748913042329,-440.0,0.00017808,2]
[363893075,1748913042338,-442.77,0.00017808,2]
[363893077,1748913042347,-616.75,0.00017808,2]
[363893078,1748913042358,-440.0,0.00017808,2]
[363893079,1748913042367,-2966.29,0.00017808,2]
[363893080,1748913042376,-440.0,0.00017808,2]
[363893081,1748913042387,-807.9,0.00017808,2]
[363893083,1748913042499,-440.0,0.00017808,2]
[363893085,1748913042509,-440.0,0.00017808,2]
[363893086,1748913042520,-440.0,0.00017808,2]
[363893087,1748913042530,-440.0,0.00017808,2]
[363893088,1748913042540,-1000.0,0.00017814,2]
[363893089,1748913042551,-1606.43567355,0.00017866,2]
[363893091,1748913042561,-500.0,0.00017917,2]
[363893093,1748913042570,-1005.30963114,0.00017917,2]
[363893095,1748913042580,-502.5247322,0.00017917,2]
[363893096,1748913042590,-420.0,0.00017962,2]
[363893097,1748913042600,-208.43,0.00018,2]
[363893098,1748913042610,-1000.0,0.00018082,2]
[363893100,1748913042619,-1000.0,0.00018082,2]
[363893101,1748913042629,-1000.0,0.00018082,7]
[363893103,1748913042638,-1000.0,0.00018082,7]
[363893105,1748913042648,-440.0,0.00018082,2]
[363893107,1748913042657,-577.33748749,0.00018082,2]
[363893109,1748913042667,-440.0,0.00018082,2]
[363893111,1748913042677,-440.0,0.00018082,2]
[363893112,1748913042686,-440.0,0.00018082,2]
[363893114,1748913042697,-440.0,0.00018082,2]
[363893115,1748913042706,-440.0,0.00018082,2]
[363893116,1748913042716,-1357.58,0.00018082,2]
[363893117,1748913042726,-1219.57,0.00018082,2]
[363893118,1748913042737,-651.59,0.00018082,2]
[363893119,1748913042747,-440.0,0.00018082,2]
[363893120,1748913042756,-2755.46,0.00018082,2]
[363893121,1748913042766,-1491.58,0.00018082,2]
[363893122,1748913042775,-541.43,0.00018082,2]
[363893123,1748913042785,-440.0,0.00018082,2]
[363893124,1748913042796,-1970.69,0.00018082,2]
[363893125,1748913042806,-440.0,0.00018082,2]
[363893126,1748913042817,-440.0,0.00018082,2]
[363893127,1748913042827,-1617.96,0.00018082,2]
[363893128,1748913042836,-1292.78,0.00018082,2]
[363893129,1748913042846,-2533.63,0.00018082,2]
[363893130,1748913042856,-4186.19,0.00018082,2]
[363893131,1748913042865,-1569.74,0.00018082,2]
[363893132,1748913042875,-613.64,0.00018082,2]
[363893133,1748913042885,-965.05,0.00018082,2]
[363893134,1748913042894,-1009.96,0.00018082,2]
[363893135,1748913042904,-440.0,0.00018082,2]
[363893136,1748913042914,-440.0,0.00018082,2]
[363893137,1748913042923,-440.0,0.00018082,2]
[363893138,1748913042934,-440.0,0.00018082,2]
[363893139,1748913042948,-440.0,0.00018082,2]
[363893140,1748913042958,-898.87,0.00018082,2]
[363893141,1748913042968,-440.0,0.00018082,2]
[363893142,1748913042979,-1821.93,0.00018082,2]
[363893143,1748913042989,-440.0,0.00018082,2]
[363893144,1748913042998,-440.0,0.00018082,2]
[363893145,1748913043009,-440.0,0.00018082,2]
[363893146,1748913043021,-516.51,0.00018082,2]
[363893147,1748913043031,-1280.67,0.00018082,2]
[363893148,1748913043042,-1497.77,0.00018082,2]
[363893149,1748913043051,-440.0,0.00018082,2]
[363893150,1748913043061,-440.0,0.00018082,2]
[363893151,1748913043071,-442.77,0.00018082,2]
[363893152,1748913043081,-616.75,0.00018082,2]
[363893153,1748913043090,-440.0,0.00018082,2]
[363893154,1748913043100,-2966.29,0.00018082,2]
[363893155,1748913043110,-440.0,0.00018082,2]
[363893156,1748913043119,-807.9,0.00018082,2]
[363893157,1748913043130,-440.0,0.00018082,2]
[363893158,1748913043139,-440.0,0.00018082,2]
[363893159,1748913043149,-440.0,0.00018082,2]
[363893160,1748913043158,-440.0,0.00018082,2]
[363893161,1748913043168,-1606.43567355,0.00018107,2]
[363893162,1748913043179,-513.19229648,0.00018126,2]
[363893163,1748913043189,-3825.19,0.00018159,2]
[363893164,1748913043199,-842.5625,0.00018161,2]
[363893165,1748913043208,-12668.79298183,0.00018161,2]
[363893166,1748913043218,-160.0,0.00018161,2]
[363893167,1748913043228,-160.0,0.00018161,2]
[363893168,1748913043238,-160.0,0.00018161,2]
[363893169,1748913043248,-229.39799938,0.00018161,2]
[363893170,1748913043258,-212.83419937,0.00018161,2]
[363893171,1748913043267,-423.56953423,0.00018161,2]
[363893172,1748913043277,-160.0,0.00018161,2]
[363893173,1748913043287,-2510.36197737,0.00018256,2]
[363893174,1748913043298,-1606.43567355,0.00018348,2]
[363893175,1748913043308,-440.0,0.00018356,2]
[363893176,1748913043317,-440.0,0.00018356,2]
[363893177,1748913043327,-440.0,0.00018356,2]
[363893178,1748913043336,-440.0,0.00018356,2]
[363893179,1748913043346,-440.0,0.00018356,2]